bitfinex/quotes_SOLUSD_20251030
["timestamp","ask_amount","ask_price","bid_price","bid_amount"]
[1761857055412,15.27403696,181.25,181.2,9.56678992]
[1761857056824,6.42724704,181.25,181.2,9.56678992]
[1761857057025,15.27403696,181.25,181.2,9.56678992]
[1761857057235,14.56403696,181.25,181.2,9.56678992]
[1761857057440,15.24403696,181.25,181.2,9.56678992]
[1761857057614,0.2,181.25,181.21,9.56678992]
[1761857057818,0.2,181.25,181.22,8.84678992]
[1761857058150,0.2,181.25,181.24,8.84678992]
[1761857058517,0.2,181.25,181.23,9.56678992]
[1761857058715,0.2,181.25,181.24,9.56678992]
[1761857059022,0.2,181.25,181.24,24.8731634]
[1761857061037,0.2,181.25,181.24,86.5731634]
[1761857061225,1e-08,181.25,181.24,86.85748654]
[1761857061549,0.2,181.28,181.27,30.38082769]
[1761857061718,0.2,181.28,181.27,39.22761761]
[1761857062047,0.2,181.28,181.27,39.94761761]
[1761857063053,0.2,181.28,181.27,45.46425025]
[1761857064452,0.2,181.32,181.27,87.12331823]
[1761857064620,0.2,181.32,181.31,39.22761761]
[1761857065019,0.2,181.32,181.31,45.46303319]
[1761857065253,0.1,181.35,181.34,30.38082769]
[1761857065552,0.1,181.35,181.34,8.84678992]
[1761857066040,0.1,181.35,181.34,19.35561761]
[1761857066756,0.1,181.35,181.34,9.78882769]
[1761857066928,0.1,181.35,181.34,18.63561761]
[1761857067438,0.1,181.35,181.34,80.33561761]
[1761857068057,0.1,181.35,181.34,85.85012075]
[1761857069633,0.1,181.35,181.31,67.21539698]
[1761857069634,0.76,181.35,181.31,67.21539698]
[1761857069951,0.76,181.35,181.32,8.84678992]
[1761857070148,0.76,181.35,181.33,8.84678992]
[1761857070943,0.1,181.35,181.33,8.84678992]
[1761857071357,0.1,181.35,181.34,24.15012075]
[1761857071562,0.1,181.35,181.34,24.84012075]
[1761857072055,0.1,181.35,181.32,6.2048854]
[1761857072260,0.1,181.35,181.34,8.84678992]
[1761857072759,0.1,181.35,181.34,9.53678992]
[1761857073475,0.1,181.35,181.34,18.63561761]
[1761857073630,0.1,181.35,181.32,9.78882769]
[1761857073943,6.27422149,181.35,181.31,70.54678992]
[1761857074262,0.66,181.34,181.31,76.06213483]
[1761857074463,0.1,181.35,181.32,8.84678992]
[1761857074754,0.1,181.35,181.31,61.7]
[1761857075059,6.27421952,181.35,181.31,8.84678992]
[1761857075258,6.27421952,181.35,181.3,8.84678992]
[1761857075456,11.98445669,181.34,181.29,15.59875984]
[1761857075757,5.80993215,181.33,181.29,9.78882769]
[1761857075954,0.66,181.33,181.29,9.78882769]
[1761857076153,0.66,181.32,181.29,15.59875984]
[1761857076555,5.51452454,181.34,181.29,15.59875984]
[1761857076738,0.66,181.33,181.29,67.50993215]
[1761857077136,0.66,181.33,181.29,61.7]
[1761857077336,5.80993215,181.3,181.25,5.80993215]
[1761857077551,0.66,181.33,181.19,5.80993215]
[1761857077552,5.80993215,181.26,181.19,5.80993215]
[1761857077761,20.592,181.28,181.19,5.80993215]
[1761857077943,5.80993215,181.24,181.18,5.80993215]
[1761857078140,5.80993215,181.22,181.17,5.80993215]
[1761857078365,5.80993215,181.2,181.16,6.89098999]
[1761857078664,0.66,181.26,181.16,6.89098999]
[1761857078665,11.32946612,181.18,181.16,6.89098999]
[1761857079163,0.66,181.17,181.16,6.89098999]
[1761857079740,0.66,181.2,181.16,6.89098999]
[1761857080058,6.46993215,181.2,181.16,6.89098999]
[1761857080357,5.80993215,181.19,181.16,6.89098999]
[1761857080672,5.80993215,181.18,181.16,6.89098999]
[1761857080852,11.98931059,181.18,181.16,6.89098999]
[1761857081055,0.66,181.17,181.16,6.89098999]
[1761857083963,11.9896098,181.17,181.16,6.89098999]
[1761857084471,32.5816098,181.17,181.16,6.89098999]
[1761857084777,32.5816098,181.17,181.16,6.17098999]
[1761857084778,38.39154195,181.17,181.16,6.17098999]
[1761857084948,21.252,181.17,181.16,6.17098999]
[1761857085154,32.5816098,181.17,181.16,6.17098999]
[1761857086088,6.37993215,181.17,181.16,6.17098999]
[1761857086249,12.1898643,181.17,181.16,6.07098999]
[1761857086652,20.592,181.13,181.05,0.2]
[1761857086882,5.80993215,181.08,181.05,0.2]
[1761857087176,5.80993215,181.06,181.05,0.2]
[1761857087767,5.80993215,181.07,181.05,0.2]
[1761857088283,6.27993215,181.07,181.05,0.2]
[1761857091593,6.27993215,181.06,181.05,0.2]
[1761857092787,11.80296318,181.06,181.05,0.2]
[1761857093188,11.33296318,181.06,181.05,0.2]
[1761857094892,5.80993215,181.07,181.05,0.2]
[1761857095189,11.80267366,181.07,181.05,0.2]
[1761857096100,5.80993215,181.06,181.05,0.2]
[1761857096587,5.52280367,181.07,181.05,0.2]
[1761857096768,5.80993215,181.07,181.05,0.2]
[1761857097273,5.80993215,181.06,181.05,0.2]
[1761857097706,6.27993215,181.06,181.05,0.2]
[1761857097908,12.0898643,181.06,181.05,0.1]
[1761857098289,20.592,181.03,180.94,9.98882769]
[1761857098484,5.80993215,180.99,180.94,15.51549134]
[1761857098693,5.80993215,180.99,180.94,16.19549134]
[1761857099407,5.80993215,180.99,180.94,22.00542349]
[1761857100286,5.80993215,180.96,180.94,0.2]
[1761857100484,5.52526181,180.99,180.94,0.2]
[1761857100485,6.17993215,180.95,180.94,0.2]
[1761857100684,0.37,180.95,180.94,0.2]
[1761857100914,6.17993215,180.95,180.94,0.2]
[1761857101215,0.37,180.95,180.94,0.2]
[1761857101514,6.17993215,180.95,180.94,0.2]
[1761857102309,11.70632065,180.95,180.94,0.2]
[1761857102817,6.17993215,180.95,180.94,0.2]
[1761857102999,11.70632065,180.95,180.94,0.2]
[1761857103202,20.592,180.92,180.87,0.1]
[1761857103393,5.80993215,180.88,180.86,0.2]
[1761857103604,5.80993215,180.87,180.86,0.2]
[1761857103935,5.80993215,180.87,180.85,0.03]
[1761857104085,20.592,180.84,180.78,0.1]
[1761857104294,31.9316822,180.84,180.78,0.1]
[1761857104491,20.592,180.8,180.78,0.1]
[1761857104689,26.40193215,180.8,180.78,0.1]
[1761857105333,4.40075469,180.87,180.78,0.1]
[1761857105334,5.52941039,180.86,180.78,0.1]
[1761857105536,5.80993215,180.82,180.78,0.1]
[1761857105937,11.33860621,180.88,180.81,5.80993215]
[1761857106120,4.44430012,180.89,180.85,5.80993215]
[1761857106333,4.44430012,180.89,180.86,5.80993215]
[1761857106519,4.44430012,180.89,180.86,0.68]
[1761857106726,5.80993215,180.89,180.84,11.33962981]
[1761857107026,5.80993215,180.85,180.79,6.58993215]
[1761857107341,20.592,180.87,180.79,0.78]
[1761857107646,5.80993215,180.84,180.79,6.31123502]
[1761857107812,5.80993215,180.85,180.79,12.12116717]
[1761857108020,5.80993215,180.84,180.79,0.78]
[1761857108251,5.80993215,180.83,180.79,0.78]
[1761857108622,11.34003954,180.83,180.79,0.78]
[1761857109030,5.80993215,180.82,180.79,0.78]
[1761857109354,5.80993215,180.83,180.79,6.31127855]
[1761857109529,5.80993215,180.83,180.79,0.78]
[1761857110042,5.80993215,180.82,180.79,0.78]
[1761857110223,11.34034071,180.82,180.79,0.1]
[1761857110426,5.80993215,180.8,180.79,0.1]
[1761857111144,26.40193215,180.8,180.79,0.1]
[1761857112026,19.35631277,180.82,180.78,0.1]
[1761857112027,5.80993215,180.79,180.78,1e-08]
[1761857112227,20.592,180.79,180.78,1e-08]
[1761857112428,26.40193215,180.79,180.78,1e-08]
[1761857112626,31.93321153,180.79,180.78,1e-08]
[1761857113140,26.40193215,180.79,180.78,1e-08]
[1761857113962,31.93321153,180.79,180.78,1e-08]
[1761857114168,26.40193215,180.79,180.78,1e-08]
[1761857114461,31.93321153,180.79,180.78,1e-08]
[1761857114752,20.592,180.8,180.78,1e-08]
[1761857114937,5.80993215,180.79,180.78,1e-08]
[1761857116651,5.52944429,180.85,180.78,1e-08]
[1761857116825,5.80993215,180.83,180.78,0.69000001]
[1761857117256,5.80993215,180.82,180.78,0.69000001]
[1761857117632,19.35305501,180.85,180.78,1e-08]
[1761857117633,5.80993215,180.79,180.78,1e-08]
[1761857117828,5.80993215,180.8,180.78,1e-08]
[1761857118049,5.80993215,180.82,180.78,0.69000001]
[1761857118249,26.40193215,180.82,180.78,0.69000001]
[1761857118560,5.80993215,180.81,180.78,0.69000001]
[1761857118860,5.80993215,180.82,180.78,0.69000001]
[1761857119057,5.80993215,180.81,180.78,0.69000001]
[1761857120222,5.80993215,180.79,180.78,1e-08]
[1761857120426,11.34121153,180.79,180.78,1e-08]
[1761857121350,5.80993215,180.79,180.78,1e-08]
[1761857122248,50.0,180.92,180.78,1e-08]
[1761857122439,5.80993215,180.83,180.78,6.49993216]
[1761857122750,5.80993215,180.83,180.78,0.69000001]
[1761857122942,11.33845935,180.88,180.82,5.80993215]
[1761857123125,19.34763941,180.91,180.84,5.80993215]
[1761857123326,5.80993215,180.9,180.85,6.49993215]
[1761857123528,5.52790265,180.91,180.86,5.80993215]
[1761857123529,11.3378348,180.91,180.86,5.80993215]
[1761857123883,5.80993215,180.92,180.87,5.80993215]
[1761857124028,11.33693154,180.93,180.88,5.80993215]
[1761857124229,5.52608311,180.96,180.9,5.80993215]
[1761857124459,69.96137745,180.98,180.93,5.80993215]
[1761857124659,64.1514453,180.98,180.94,5.80993215]
[1761857124848,69.67710721,180.98,180.93,6.49993215]
[1761857125031,75.48703936,180.98,180.93,6.49993215]
[1761857125228,69.67710721,180.98,180.94,0.69]
[1761857126135,64.1514453,180.98,180.94,6.49993215]
[1761857126341,64.1514453,180.98,180.95,5.80993215]
[1761857126563,64.1514453,180.98,180.95,6.49993215]
[1761857127158,64.1514453,180.98,180.97,5.80993215]
[1761857127461,0.2,181.02,180.97,6.49993215]
[1761857127758,0.2,181.02,181.01,5.80993215]
[1761857128252,0.2,181.02,181.01,0.69]
[1761857128755,0.2,181.02,181.01,6.49993215]
[1761857129065,0.2,181.02,181.01,0.69]
[1761857129364,0.2,181.02,181.01,12.0244888]
[1761857129560,0.2,181.02,181.01,6.49993215]
[1761857131658,0.2,181.02,181.01,12.0244888]
[1761857132263,0.2,181.02,181.01,21.81331649]
[1761857132630,11.33158646,181.11,181.02,9.78882769]
[1761857132827,11.33158646,181.11,181.06,5.80993215]
[1761857133031,11.33158646,181.11,181.07,0.68]
[1761857133255,5.52165431,181.11,181.07,6.48993215]
[1761857133467,11.33158646,181.11,181.07,0.68]
[1761857133764,2.88815398,181.15,181.1,5.80993215]
[1761857133934,2.88815398,181.15,181.08,0.68]
[1761857133935,75.86095832,181.25,181.13,5.80993215]
[1761857134254,5.80993215,181.2,181.14,5.80993215]
[1761857134453,5.80993215,181.21,181.16,5.80993215]
[1761857134754,5.80993215,181.2,181.15,6.48993215]
[1761857135158,5.80993215,181.21,181.16,6.48993215]
[1761857135338,5.80993215,181.22,181.17,5.80993215]
[1761857135533,68.91141029,181.25,181.14,19.32197982]
[1761857135534,5.80993215,181.2,181.15,6.48993215]
[1761857135737,5.80993215,181.17,181.12,12.0111236]
[1761857136141,5.80993215,181.18,181.13,0.68]
[1761857136344,5.80993215,181.2,181.14,11.33052395]
[1761857136552,0.2,181.23,181.15,5.80993215]
[1761857136745,5.80993215,181.21,181.16,6.48993215]
[1761857137138,20.592,181.22,181.16,6.48993215]
[1761857137453,8.84155943,181.21,181.17,0.68]
[1761857137854,29.43355943,181.22,181.17,9.52155943]
[1761857138065,68.91141029,181.25,181.17,0.68]
[1761857138066,8.84155943,181.23,181.17,0.68]
[1761857138268,8.84155943,181.22,181.18,5.51937299]
[1761857138771,29.43355943,181.22,181.18,6.19937299]
[1761857139006,20.592,181.22,181.18,6.19937299]
[1761857139187,29.43355943,181.22,181.18,5.51937299]
[1761857139382,8.84155943,181.21,181.16,15.04143265]
[1761857139850,8.84155943,181.21,181.16,5.51987322]
[1761857140052,29.43355943,181.22,181.17,9.52155943]
[1761857140360,65.82501187,181.25,181.21,8.84155943]
[1761857140540,8.84155943,181.25,181.18,6.19908033]
[1761857140747,8.84155943,181.22,181.17,9.52155943]
[1761857140942,8.84155943,181.22,181.17,0.68]
[1761857141156,0.2,181.25,181.15,5.52028705]
[1761857141157,8.84155943,181.23,181.18,9.52155943]
[1761857141364,8.84155943,181.23,181.19,0.68]
[1761857141660,20.592,181.27,181.2,8.84155943]
[1761857142047,8.84155943,181.25,181.19,9.52155943]
[1761857142253,8.84155943,181.24,181.19,9.52155943]
[1761857142457,8.84155943,181.23,181.19,0.68]
[1761857142661,8.84155943,181.23,181.19,6.19890754]
[1761857142871,8.84155943,181.24,181.19,15.04046697]
[1761857143389,8.84155943,181.24,181.19,0.68]
[1761857143764,8.84155943,181.24,181.19,6.19906456]
[1761857143972,8.84155943,181.24,181.19,15.04062399]
[1761857145168,8.84155943,181.24,181.19,6.19906456]
[1761857145378,2.88590146,181.29,181.23,8.84155943]
[1761857145586,8.84155943,181.28,181.23,8.84155943]
[1761857145760,8.84155943,181.28,181.22,8.84155943]
[1761857146170,8.84155943,181.28,181.22,9.52155943]
[1761857146367,0.2,181.3,181.23,14.35940967]
[1761857146567,29.43355943,181.28,181.23,14.35940967]
[1761857147091,29.43355943,181.3,181.25,8.84155943]
[1761857147697,8.84155943,181.29,181.25,0.68]
[1761857147865,29.43355943,181.3,181.25,0.68]
[1761857148261,29.43355943,181.3,181.24,14.35883154]
[1761857148693,8.84155943,181.25,181.2,0.68]
[1761857148866,8.84155943,181.23,181.2,6.19874169]
[1761857149073,8.84155943,181.22,181.16,0.68]
[1761857149392,8.84155943,181.2,181.16,0.68]
[1761857149570,8.84155943,181.19,181.14,8.84155943]
[1761857149772,8.84155943,181.18,181.13,9.52155943]
[1761857150085,8.84155943,181.19,181.14,8.84155943]
[1761857150259,0.2,181.24,181.15,5.52028705]
[1761857150260,8.84155943,181.2,181.15,5.52028705]
[1761857150464,20.592,181.22,181.15,5.52028705]
[1761857150785,8.84155943,181.21,181.16,9.52155943]
[1761857151683,20.592,181.22,181.16,0.68]
[1761857151684,8.84155943,181.2,181.16,0.68]
[1761857152367,8.84155943,181.2,181.16,6.19979888]
[1761857153382,0.2,181.25,181.17,9.52155943]
[1761857153586,8.84155943,181.22,181.17,9.52155943]
[1761857154094,20.592,181.23,181.17,0.68]
[1761857154095,8.84155943,181.21,181.17,0.68]
[1761857154667,20.592,181.23,181.17,0.68]
[1761857154668,20.592,181.23,181.18,14.36093242]
[1761857154869,29.43355943,181.25,181.19,8.84155943]
[1761857155088,8.84155943,181.24,181.19,9.52155943]
[1761857155592,8.84155943,181.24,181.2,0.68]
[1761857155979,20.592,181.25,181.2,0.68]
[1761857155980,29.43355943,181.25,181.2,0.68]
[1761857156179,29.43355943,181.25,181.2,9.52155943]
[1761857156502,29.43355943,181.25,181.2,0.68]
[1761857156697,8.84155943,181.26,181.21,15.04001867]
[1761857156898,8.84155943,181.26,181.22,0.68]
[1761857157084,29.43355943,181.27,181.22,9.52155943]
[1761857157281,8.84155943,181.26,181.22,0.68]
[1761857158300,29.43355943,181.27,181.22,0.68]
[1761857159193,20.592,181.27,181.22,6.19806873]
[1761857159370,20.592,181.27,181.23,0.68]
[1761857159772,20.592,181.27,181.24,8.84155943]
[1761857159972,20.592,181.27,181.25,8.84155943]
[1761857160270,20.592,181.28,181.25,8.84155943]
[1761857160471,8.84155943,181.31,181.25,8.84155943]
[1761857160696,3.08501282,181.34,181.26,9.52155943]
[1761857160991,8.84155943,181.31,181.26,9.52155943]
[1761857161198,20.592,181.3,181.19,0.68]
[1761857161382,8.84155943,181.22,181.16,0.68]
[1761857161584,8.84155943,181.21,181.16,9.52155943]
[1761857161979,8.84155943,181.2,181.13,0.68]
[1761857162302,8.84155943,181.19,181.14,8.84155943]
[1761857162684,0.2,181.22,181.15,0.68]
[1761857162906,8.84155943,181.21,181.15,9.52155943]
[1761857163107,20.592,181.23,181.19,8.84155943]
[1761857163294,20.592,181.23,181.2,8.84155943]
[1761857163600,8.84155943,181.28,181.22,8.84155943]
[1761857163806,8.84155943,181.28,181.19,0.68]
[1761857163807,8.84155943,181.29,181.23,8.84155943]
[1761857164023,8.84155943,181.31,181.26,8.84155943]
[1761857164600,8.84155943,181.32,181.26,8.84155943]
[1761857164804,29.43355943,181.32,181.26,8.84155943]
[1761857165011,18.63038712,181.27,181.19,0.68]
[1761857165191,20.592,181.29,181.2,8.84155943]
[1761857165192,8.84155943,181.26,181.2,8.84155943]
[1761857165401,8.84155943,181.27,181.21,8.84155943]
[1761857165816,8.84155943,181.27,181.2,0.68]
[1761857165817,8.84155943,181.26,181.2,9.52155943]
[1761857166317,20.592,181.27,181.24,8.84155943]
[1761857166716,20.592,181.27,181.24,9.52155943]
[1761857166922,20.592,181.28,181.24,9.52155943]
[1761857167090,29.43355943,181.28,181.22,14.35948109]
[1761857167610,8.84155943,181.26,181.21,8.84155943]
[1761857167815,8.84155943,181.27,181.22,8.84155943]
[1761857168128,8.84155943,181.27,181.2,19.99563499]
[1761857168129,20.592,181.28,181.23,8.84155943]
[1761857168609,8.84155943,181.3,181.25,8.84155943]
[1761857169119,8.84155943,181.3,181.25,9.52155943]
[1761857169315,20.592,181.3,181.26,15.03849642]
[1761857170200,20.592,181.3,181.26,6.19693699]
[1761857171598,20.592,181.3,181.26,5.51693699]
[1761857171994,20.592,181.3,181.27,0.68]
[1761857172220,20.592,181.3,181.26,14.35849642]
[1761857172538,29.43355943,181.3,181.24,0.68]
[1761857172709,29.43355943,181.3,181.24,9.52155943]
[1761857173223,29.43355943,181.3,181.25,8.84155943]
[1761857173439,8.84155943,181.26,181.2,8.84155943]
[1761857173598,26.10865703,181.27,181.19,15.04062557]
[1761857173931,26.10865703,181.27,181.21,8.84155943]
[1761857173932,20.592,181.27,181.21,8.84155943]
[1761857174110,29.43355943,181.27,181.22,8.84155943]
[1761857174300,0.2,181.3,181.23,8.84155943]
[1761857174504,8.84155943,181.28,181.23,8.84155943]
[1761857175118,8.84155943,181.28,181.22,8.84155943]
[1761857175327,29.43355943,181.27,181.22,8.84155943]
[1761857175516,29.43355943,181.27,181.22,14.35944794]
[1761857175830,8.84155943,181.26,181.21,15.03995562]
[1761857176626,29.43355943,181.27,181.22,9.56155943]
[1761857177332,29.43355943,181.27,181.22,0.72]
[1761857177504,9.78882769,181.31,181.15,48.19225032]
[1761857177505,8.84155943,181.23,181.15,0.72]
[1761857177707,8.84155943,181.21,181.15,6.24019948]
[1761857177942,8.84155943,181.2,181.15,15.08175891]
[1761857178106,8.84155943,181.19,181.15,0.72]
[1761857179224,29.43355943,181.2,181.15,9.56155943]
[1761857179738,8.84155943,181.17,181.11,0.72]
[1761857180037,20.592,181.2,181.14,8.84155943]
[1761857180038,29.43355943,181.2,181.14,8.84155943]
[1761857180334,8.84155943,181.19,181.14,8.84155943]
[1761857180910,8.84155943,181.19,181.13,8.84155943]
[1761857181327,8.84155943,181.19,181.13,9.56155943]
[1761857181528,8.84155943,181.19,181.14,8.84155943]
[1761857181732,20.592,181.2,181.15,14.36184648]
[1761857181733,29.43355943,181.2,181.15,14.36184648]
[1761857181934,29.43355943,181.2,181.15,15.08184648]
[1761857182235,34.95235285,181.2,181.15,8.84155943]
[1761857182449,34.95246213,181.2,181.15,8.84155943]
[1761857182618,29.43355943,181.2,181.15,9.56155943]
[1761857182818,29.43355943,181.2,181.16,6.89098999]
[1761857183224,34.95237453,181.2,181.16,6.89098999]
[1761857183745,29.43355943,181.2,181.16,6.89098999]
[1761857184070,29.43355943,181.2,181.16,12.41094423]
[1761857184216,34.95236342,181.2,181.16,6.89098999]
[1761857184537,20.592,181.22,181.17,9.56155943]
[1761857184741,20.592,181.22,181.18,8.84155943]
[1761857184918,20.592,181.22,181.18,9.56155943]
[1761857185245,20.592,181.22,181.19,0.72]
[1761857185427,8.84155943,181.23,181.19,0.72]
[1761857185632,8.84155943,181.23,181.17,0.72]
[1761857185832,8.84155943,181.21,181.16,12.41096173]
[1761857186017,8.84155943,181.21,181.16,21.25252116]
[1761857186218,8.84155943,181.22,181.17,9.56155943]
[1761857186418,8.84155943,181.23,181.18,8.84155943]
[1761857186654,1e-08,181.25,181.19,20.592]
[1761857186822,6.22477516,181.34,181.2,21.312]
[1761857187023,8.84155943,181.3,181.23,8.84155943]
[1761857187222,8.84155943,181.28,181.21,0.72]
[1761857187425,8.84155943,181.28,181.22,8.84155943]
[1761857187847,8.84155943,181.28,181.22,14.35958071]
[1761857188252,8.84155943,181.28,181.22,15.07958071]
[1761857188746,8.84155943,181.29,181.22,28.87496753]
[1761857188951,20.592,181.31,181.26,8.84155943]
[1761857189152,9.78882769,181.34,181.27,9.52155943]
[1761857189153,14.35638313,181.33,181.27,9.52155943]
[1761857189654,16.97027709,181.35,181.32,8.84155943]
[1761857189655,0.1,181.35,181.32,8.84155943]
[1761857189964,0.1,181.35,181.32,14.35666677]
[1761857190271,0.1,181.35,181.32,0.68]
[1761857190743,8.84155943,181.33,181.26,0.68]
[1761857190929,29.43355943,181.32,181.26,9.52155943]
[1761857191130,20.592,181.32,181.26,9.52155943]
[1761857191369,29.43355943,181.32,181.26,9.52155943]
[1761857191533,20.592,181.32,181.26,9.52155943]
[1761857191745,34.94888377,181.32,181.26,15.03836473]
[1761857192550,34.94882268,181.32,181.26,15.03836473]
[1761857192754,29.43355943,181.32,181.27,8.84155943]
[1761857192957,8.84155943,181.32,181.27,8.84155943]
[1761857193160,8.84155943,181.32,181.27,9.52155943]
[1761857193744,14.35636668,181.33,181.27,9.52155943]
[1761857194071,8.84155943,181.32,181.27,9.52155943]
[1761857194462,8.84155943,181.32,181.27,15.03809735]
[1761857194768,14.35636668,181.33,181.27,15.03809735]
[1761857195062,14.35636668,181.33,181.17,5.51967765]
[1761857195063,8.84155943,181.28,181.17,5.51967765]
[1761857195372,29.43355943,181.3,181.24,8.84155943]
[1761857195748,29.43355943,181.3,181.24,9.52155943]
[1761857195951,34.94930531,181.3,181.24,15.0389681]
[1761857196162,34.94938944,181.3,181.24,0.68]
[1761857196470,26.10783001,181.3,181.24,15.03909659]
[1761857196765,29.43355943,181.3,181.24,15.03909659]
[1761857197153,26.10775617,181.3,181.25,8.84155943]
[1761857197466,5.51537104,181.32,181.27,5.81239222]
[1761857197862,11.32776326,181.32,181.27,0.68]
[1761857198366,5.81239222,181.32,181.27,0.68]
[1761857198765,11.32753195,181.32,181.27,6.19659803]
[1761857198967,20.592,181.33,181.28,6.49239222]
[1761857199464,20.592,181.33,181.29,0.68]
[1761857199669,26.10688807,181.33,181.29,0.68]
[1761857199973,5.81239222,181.3,181.25,5.81239222]
[1761857200149,11.32803337,181.31,181.25,12.00952459]
[1761857200562,11.32803337,181.31,181.25,6.49239222]
[1761857200770,11.32803337,181.31,181.25,12.00956149]
[1761857200968,11.32803337,181.31,181.25,6.49239222]
[1761857201145,5.81239222,181.28,181.21,0.68]
[1761857201349,5.81239222,181.28,181.23,5.81239222]
[1761857201566,5.81239222,181.28,181.22,6.49239222]
[1761857202151,11.32892109,181.28,181.23,5.81239222]
[1761857202573,11.32892109,181.28,181.23,6.49239222]
[1761857203072,11.32892109,181.28,181.23,0.68]
[1761857203488,5.81239222,181.28,181.23,0.68]
[1761857203643,11.32890205,181.28,181.23,0.68]
[1761857203977,5.81239222,181.27,181.23,0.68]
[1761857204750,11.32890205,181.28,181.23,0.68]
[1761857204957,5.81239222,181.28,181.23,6.19784249]
[1761857205559,11.32881731,181.28,181.23,0.68]
[1761857206266,5.81239222,181.27,181.23,0.68]
[1761857206466,0.2,181.3,181.23,0.68]
[1761857206660,5.81239222,181.27,181.23,6.1978443]
[1761857206979,11.32910436,181.27,181.23,0.68]
[1761857207352,11.32910436,181.27,181.21,6.49239222]
[1761857207567,11.32910436,181.27,181.21,5.81239222]
[1761857207780,11.32910436,181.27,181.22,0.68]
[1761857208079,26.40439222,181.27,181.22,0.68]
[1761857208272,31.92104282,181.27,181.22,0.68]
[1761857209771,26.1086506,181.27,181.22,0.68]
[1761857209975,31.92104282,181.27,181.22,0.68]
[1761857210169,9.78882769,181.33,181.25,5.81239222]
[1761857210170,20.592,181.29,181.25,5.81239222]
[1761857210352,20.592,181.29,181.24,5.81239222]
[1761857210553,20.592,181.29,181.22,6.19806766]
[1761857210554,20.592,181.29,181.23,0.68]
[1761857210766,20.592,181.29,181.24,5.81239222]
[1761857210968,26.10823479,181.29,181.24,11.32984561]
[1761857211183,26.10823479,181.29,181.25,0.68]
[1761857212182,43.35346632,181.35,181.26,6.49239222]
[1761857212183,5.81239222,181.32,181.26,6.49239222]
[1761857212686,5.81239222,181.32,181.26,5.81239222]
[1761857212857,5.81239222,181.31,181.26,0.68]
[1761857213060,11.32811202,181.3,181.25,0.68]
[1761857213361,5.5157198,181.3,181.25,5.81239222]
[1761857213562,5.5157198,181.3,181.26,0.68]
[1761857213981,5.51542539,181.31,181.26,6.49239222]
[1761857214565,25.11635657,181.31,181.26,0.68]
[1761857214766,25.11635657,181.31,181.27,0.68]
[1761857215173,19.30396435,181.31,181.27,0.68]
[1761857215486,20.592,181.33,181.3,5.81239222]
[1761857215673,20.592,181.33,181.27,6.19660986]
[1761857215674,5.61448942,181.35,181.31,6.49239222]
[1761857215880,0.1,181.35,181.31,6.49239222]
[1761857216190,0.1,181.35,181.34,5.81239222]
[1761857216562,0.1,181.35,181.34,0.68]
[1761857216890,0.1,181.35,181.33,5.81239222]
[1761857217184,5.61424602,181.35,181.29,5.81239222]
[1761857217495,5.61424602,181.35,181.31,5.81239222]
[1761857217994,5.61424602,181.35,181.31,6.49239222]
[1761857218773,5.61424602,181.35,181.31,0.68]
[1761857219095,5.61424602,181.35,181.28,6.18629794]
[1761857219288,5.61424602,181.35,181.3,5.81239222]
[1761857219489,5.61424602,181.35,181.3,11.32800348]
[1761857219676,0.1,181.35,181.32,5.81239222]
[1761857220195,0.1,181.35,181.32,6.48239222]
[1761857220358,5.61421518,181.35,181.32,6.48239222]
[1761857220673,5.61421518,181.35,181.3,6.48239222]
[1761857220994,0.1,181.35,181.31,5.81239222]
[1761857221292,0.1,181.35,181.31,6.48239222]
[1761857221610,0.1,181.35,181.34,5.81239222]
[1761857221984,0.1,181.35,181.34,6.48239222]
[1761857222165,0.1,181.35,181.34,0.67]
[1761857222492,0.1,181.35,181.34,6.48239222]
[1761857223370,0.1,181.35,181.34,11.99689536]
[1761857223765,5.61419906,181.35,181.33,5.81239222]
[1761857223985,0.1,181.35,181.33,5.81239222]
[1761857224194,0.1,181.35,181.34,6.48239222]
[1761857225496,0.1,181.35,181.34,11.99689536]
[1761857225686,0.2,181.38,181.34,11.99689536]
[1761857225873,0.2,181.38,181.37,5.81239222]
[1761857226392,0.2,181.38,181.37,6.48239222]
[1761857226593,0.2,181.38,181.37,68.18239222]